[Event "2026 European Womens Championship"]
[Site "Batumi, GE"]
[Date "2026.05.30"]
[Round "6"]
[White "Krkyasharyan, Sona"]
[Black "Tsetskhladze, Mariam"]
[Result "0-1"]
[Board "116"]
[TimeControl "5400+30"]
[WhiteFideId "13316729"]
[BlackFideId "13623834"]
[WhiteElo "2063"]
[BlackElo "2234"]
[WhiteTitle "WFM"]
[BlackTitle "WFM"]
[WhiteClock "0:42:28"]
[BlackClock "0:03:42"]
[Variant "Standard"]

1. d4 {[%clk 1:30:57]}  Nf6 {[%clk 1:30:42]} 2. c4 {[%clk 1:31:21]}  e6 {[%clk 1:31:07]} 3. Nf3 {[%clk 1:31:45]}  d5 {[%clk 1:31:31]}
4. g3 {[%clk 1:32:10]}  Bb4+ {[%clk 1:31:55]} 5. Bd2 {[%clk 1:32:34]}  a5 {[%clk 1:32:19]} 6. Bg2 {[%clk 1:32:58]}  O-O {[%clk 1:32:42]}
7. O-O {[%clk 1:33:22]}  dxc4 {[%clk 1:33:02]} 8. Qc2 {[%clk 1:33:14]}  Bxd2 {[%clk 1:31:27]} 9. Nbxd2 {[%clk 1:33:22]}  b5 {[%clk 1:31:06]}
10. a4 {[%clk 1:31:21]}  c6 {[%clk 1:30:02]} 11. e4 {[%clk 1:27:17]}  Na6 {[%clk 1:18:48]} 12. e5 {[%clk 1:22:40]}  Nb4 {[%clk 1:17:23]}
13. Qd1 {[%clk 1:22:51]}  Nfd5 {[%clk 1:16:27]} 14. Ne4 {[%clk 1:22:26]}  h6 {[%clk 1:06:10]} 15. h4 {[%clk 1:20:44]}  Ra7 {[%clk 1:01:54]}
16. Nh2 {[%clk 1:18:36]}  Ne7 {[%clk 0:44:11]} 17. Nd6 {[%clk 1:09:16]}  Nf5 {[%clk 0:40:31]} 18. Nxf5 {[%clk 1:07:06]}  exf5 {[%clk 0:38:17]}
19. axb5 {[%clk 1:06:06]}  cxb5 {[%clk 0:36:50]} 20. d5 {[%clk 1:05:39]}  Nd3 {[%clk 0:34:06]} 21. Qe2 {[%clk 1:04:25]}  f4 {[%clk 0:28:45]}
22. Rad1 {[%clk 0:52:59]}  Re8 {[%clk 0:18:15]} 23. gxf4 {[%clk 0:47:36]}  Nxf4 {[%clk 0:13:52]} 24. Qe3 {[%clk 0:46:46]}  Qxh4 {[%clk 0:13:20]}
25. Kh1 {[%clk 0:43:59]}  Qg5 {[%clk 0:09:23]} 26. Rg1 {[%clk 0:43:20]}  Rae7 {[%clk 0:09:08]} 27. e6 {[%clk 0:40:50]}  Nxg2 {[%clk 0:06:58]}
28. Qxg5 {[%clk 0:40:51]}  hxg5 {[%clk 0:07:24]} 29. Rxg2 {[%clk 0:41:16]}  fxe6 {[%clk 0:07:42]} 30. d6 {[%clk 0:41:40]}  Rd7 {[%clk 0:07:54]}
31. Rxg5 {[%clk 0:42:04]}  Bb7+ {[%clk 0:08:21]} 32. Kg1 {[%clk 0:42:24]}  Bd5 {[%clk 0:08:46]} 33. Ng4 {[%clk 0:42:21]}  Rf8 {[%clk 0:06:12]}
34. Ne3 {[%clk 0:40:00]}  Rxd6 {[%clk 0:06:37]} 35. Nxd5 {[%clk 0:40:25]}  exd5 {[%clk 0:07:05]} 36. Rdxd5 {[%clk 0:40:45]}  Rxd5 {[%clk 0:07:26]}
37. Rxd5 {[%clk 0:41:10]}  Rb8 {[%clk 0:07:49]} 38. Kf1 {[%clk 0:41:24]}  Kf7 {[%clk 0:08:05]} 39. Ke2 {[%clk 0:41:45]}  Ke6 {[%clk 0:05:09]}
40. Rc5 {[%clk 0:40:20]}  Kd6 {[%clk 0:05:09]} 41. Rg5 {[%clk 0:40:44]}  Rb7 {[%clk 0:05:16]} 42. Kd2 {[%clk 0:40:26]}  Kc6 {[%clk 0:05:36]}
43. Kc3 {[%clk 0:40:32]}  Rf7 {[%clk 0:01:06]} 44. Rg6+ {[%clk 0:40:12]}  Rf6 {[%clk 0:01:29]} 45. Rxg7 {[%clk 0:40:28]}  Rf3+ {[%clk 0:01:49]}
46. Kc2 {[%clk 0:39:25]}  Rxf2+ {[%clk 0:02:15]} 47. Kc3 {[%clk 0:39:49]}  Rf3+ {[%clk 0:02:30]} 48. Kc2 {[%clk 0:40:13]}  Kc5 {[%clk 0:02:49]}
49. Rg5+ {[%clk 0:40:33]}  Kb4 {[%clk 0:03:12]} 50. Rg2 {[%clk 0:40:59]}  a4 {[%clk 0:02:33]} 51. Rg5 {[%clk 0:41:07]}  a3 {[%clk 0:02:26]}
52. bxa3+ {[%clk 0:41:18]}  Rxa3 {[%clk 0:02:53]} 53. Rf5 {[%clk 0:41:38]}  Ra2+ {[%clk 0:03:17]} 54. Kb1 {[%clk 0:42:03]}  Rh2 {[%clk 0:03:32]}
55. Rg5 {[%clk 0:42:28]}  Ka4 {[%clk 0:03:42]} 0-1

[Event "2026 European Womens Championship"]
[Site "Batumi, GE"]
[Date "2026.05.30"]
[Round "6"]
[White "Muradyan, Anahit"]
[Black "Zeliantsova, Kseniya"]
[Result "0-1"]
[Board "117"]
[TimeControl "5400+30"]
[WhiteFideId "13314807"]
[BlackFideId "13512617"]
[WhiteElo "1977"]
[BlackElo "2176"]
[BlackTitle "WFM"]
[WhiteClock "0:46:04"]
[BlackClock "0:17:54"]
[Variant "Standard"]

1. d4 {[%clk 1:30:56]}  Nf6 {[%clk 1:30:53]} 2. c4 {[%clk 1:31:23]}  g6 {[%clk 1:31:16]} 3. Nc3 {[%clk 1:31:49]}  d6 {[%clk 1:31:37]}
4. e4 {[%clk 1:32:16]}  Bg7 {[%clk 1:31:54]} 5. h3 {[%clk 1:32:35]}  O-O {[%clk 1:31:53]} 6. Be3 {[%clk 1:32:55]}  e5 {[%clk 1:28:09]}
7. d5 {[%clk 1:33:18]}  c6 {[%clk 1:26:50]} 8. Nge2 {[%clk 1:32:22]}  cxd5 {[%clk 1:26:04]} 9. cxd5 {[%clk 1:32:30]}  b5 {[%clk 1:15:07]}
10. a3 {[%clk 1:31:26]}  Nbd7 {[%clk 1:11:12]} 11. g4 {[%clk 1:31:25]}  Nb6 {[%clk 1:04:37]} 12. Ng3 {[%clk 1:30:24]}  Nc4 {[%clk 1:04:11]}
13. Bxc4 {[%clk 1:30:29]}  bxc4 {[%clk 1:04:38]} 14. Qd2 {[%clk 1:30:36]}  Nd7 {[%clk 0:56:50]} 15. h4 {[%clk 1:26:48]}  Nc5 {[%clk 0:54:03]}
16. Bxc5 {[%clk 1:26:47]}  dxc5 {[%clk 0:52:31]} 17. f3 {[%clk 1:27:13]}  Rb8 {[%clk 0:50:37]} 18. h5 {[%clk 1:27:17]}  Bf6 {[%clk 0:43:09]}
19. hxg6 {[%clk 1:25:08]}  fxg6 {[%clk 0:43:13]} 20. Qh2 {[%clk 1:23:52]}  Rf7 {[%clk 0:41:40]} 21. Nf1 {[%clk 1:23:17]}  Bg5 {[%clk 0:40:25]}
22. Qe2 {[%clk 1:11:55]}  Qf6 {[%clk 0:34:47]} 23. Nh2 {[%clk 1:05:02]}  Bh4+ {[%clk 0:33:41]} 24. Kd1 {[%clk 1:03:09]}  Rfb7 {[%clk 0:31:45]}
25. Rb1 {[%clk 1:02:29]}  Rb3 {[%clk 0:29:46]} 26. Qc2 {[%clk 0:56:08]}  Bg3 {[%clk 0:26:56]} 27. Ke2 {[%clk 0:53:31]}  Qf4 {[%clk 0:23:19]}
28. Nf1 {[%clk 0:50:09]}  Bxg4 {[%clk 0:22:12]} 29. Nd2 {[%clk 0:49:38]}  Bh5 {[%clk 0:20:53]} 30. Rxh5 {[%clk 0:49:02]}  gxh5 {[%clk 0:20:44]}
31. Nxb3 {[%clk 0:49:27]}  cxb3 {[%clk 0:19:32]} 32. Qd3 {[%clk 0:48:07]}  Qh4 {[%clk 0:17:42]} 33. Qd2 {[%clk 0:45:21]}  Qh2+ {[%clk 0:16:39]}
34. Kd1 {[%clk 0:45:11]}  Qg1+ {[%clk 0:17:03]} 35. Ke2 {[%clk 0:45:37]}  Qf2+ {[%clk 0:17:29]} 36. Kd1 {[%clk 0:46:04]}  Qf1+ {[%clk 0:17:54]} 0-1

[Event "2026 European Womens Championship"]
[Site "Batumi, GE"]
[Date "2026.05.30"]
[Round "6"]
[White "Gueci, Tea"]
[Black "Asatiani, Natali"]
[Result "1-0"]
[Board "118"]
[TimeControl "5400+30"]
[WhiteFideId "872342"]
[BlackFideId "13636715"]
[WhiteElo "2160"]
[BlackElo "1603"]
[WhiteTitle "WIM"]
[WhiteClock "0:24:30"]
[BlackClock "0:03:23"]
[Variant "Standard"]

1. e4 {[%clk 1:30:59]}  c5 {[%clk 1:30:48]} 2. Nf3 {[%clk 1:31:26]}  g6 {[%clk 1:31:07]} 3. Bc4 {[%clk 1:31:42]}  Bg7 {[%clk 1:30:49]}
4. O-O {[%clk 1:31:42]}  Nc6 {[%clk 1:28:24]} 5. c3 {[%clk 1:31:37]}  Nf6 {[%clk 1:25:40]} 6. e5 {[%clk 1:29:33]}  Ng8 {[%clk 1:16:07]}
7. d4 {[%clk 1:26:28]}  cxd4 {[%clk 1:13:19]} 8. cxd4 {[%clk 1:25:49]}  d5 {[%clk 1:11:33]} 9. Bb5 {[%clk 1:16:03]}  a6 {[%clk 1:09:53]}
10. Bxc6+ {[%clk 1:13:36]}  bxc6 {[%clk 1:10:22]} 11. h3 {[%clk 1:13:33]}  e6 {[%clk 1:06:30]} 12. Nc3 {[%clk 1:06:45]}  Ne7 {[%clk 0:59:18]}
13. Na4 {[%clk 1:05:12]}  O-O {[%clk 0:58:48]} 14. Bg5 {[%clk 0:59:10]}  h6 {[%clk 0:57:57]} 15. Bd2 {[%clk 0:57:34]}  Nf5 {[%clk 0:49:00]}
16. Rc1 {[%clk 0:56:25]}  Bd7 {[%clk 0:42:44]} 17. Nc5 {[%clk 0:55:53]}  Kh7 {[%clk 0:38:49]} 18. Qa4 {[%clk 0:53:26]}  Ne7 {[%clk 0:34:34]}
19. Ba5 {[%clk 0:48:28]}  Qc8 {[%clk 0:30:37]} 20. Bb4 {[%clk 0:48:29]}  Re8 {[%clk 0:27:52]} 21. Nxd7 {[%clk 0:37:53]}  Qxd7 {[%clk 0:28:20]}
22. Bxe7 {[%clk 0:38:17]}  Rxe7 {[%clk 0:23:45]} 23. Rxc6 {[%clk 0:37:54]}  Qb7 {[%clk 0:23:13]} 24. Qc2 {[%clk 0:36:28]}  Rb8 {[%clk 0:22:29]}
25. b3 {[%clk 0:35:26]}  Qb5 {[%clk 0:13:10]} 26. h4 {[%clk 0:34:25]}  Rf8 {[%clk 0:12:00]} 27. h5 {[%clk 0:33:21]}  Qb4 {[%clk 0:06:27]}
28. Rxa6 {[%clk 0:30:57]}  Bh8 {[%clk 0:04:41]} 29. Ra4 {[%clk 0:28:46]}  Qb6 {[%clk 0:04:16]} 30. Rc1 {[%clk 0:27:59]}  Qb8 {[%clk 0:03:03]}
31. Nh4 {[%clk 0:26:08]}  Qe8 {[%clk 0:02:55]} 32. hxg6+ {[%clk 0:25:38]}  fxg6 {[%clk 0:03:23]} 33. Ra8 {[%clk 0:24:30]} 1-0

[Event "2026 European Womens Championship"]
[Site "Batumi, GE"]
[Date "2026.05.30"]
[Round "6"]
[White "Donghvani, Nia"]
[Black "Xing, Lida"]
[Result "1/2-1/2"]
[Board "119"]
[TimeControl "5400+30"]
[WhiteFideId "13614649"]
[BlackFideId "13326171"]
[WhiteElo "2117"]
[BlackElo "1598"]
[WhiteTitle "WFM"]
[WhiteClock "0:01:58"]
[BlackClock "0:59:24"]
[Variant "Standard"]

1. Nf3 {[%clk 1:30:58]}  Nf6 {[%clk 1:29:16]} 2. c4 {[%clk 1:30:50]}  g6 {[%clk 1:28:43]} 3. b3 {[%clk 1:29:32]}  Bg7 {[%clk 1:29:06]}
4. Bb2 {[%clk 1:30:01]}  O-O {[%clk 1:29:22]} 5. g3 {[%clk 1:29:00]}  c5 {[%clk 1:27:40]} 6. Bg2 {[%clk 1:29:19]}  Nc6 {[%clk 1:27:58]}
7. O-O {[%clk 1:29:17]}  d6 {[%clk 1:26:00]} 8. Nc3 {[%clk 1:21:45]}  Bf5 {[%clk 1:24:28]} 9. d4 {[%clk 1:07:15]}  Ne4 {[%clk 1:17:38]}
10. Na4 {[%clk 1:02:24]}  Qa5 {[%clk 1:04:33]} 11. h3 {[%clk 0:55:36]}  h5 {[%clk 1:04:09]} 12. e3 {[%clk 0:51:01]}  a6 {[%clk 0:57:23]}
13. Nh4 {[%clk 0:48:10]}  e6 {[%clk 0:53:18]} 14. Bxe4 {[%clk 0:24:26]}  Bxe4 {[%clk 0:53:31]} 15. Nc3 {[%clk 0:23:35]}  Bf5 {[%clk 0:53:42]}
16. Nxf5 {[%clk 0:23:37]}  exf5 {[%clk 0:54:05]} 17. Nd5 {[%clk 0:23:14]}  Qd8 {[%clk 0:52:51]} 18. h4 {[%clk 0:21:15]}  Re8 {[%clk 0:48:46]}
19. Rb1 {[%clk 0:15:39]}  cxd4 {[%clk 0:41:53]} 20. exd4 {[%clk 0:16:08]}  Re4 {[%clk 0:41:07]} 21. f3 {[%clk 0:16:16]}  Re8 {[%clk 0:37:57]}
22. Qd2 {[%clk 0:16:17]}  Ne7 {[%clk 0:38:03]} 23. Nxe7+ {[%clk 0:15:27]}  Rxe7 {[%clk 0:38:17]} 24. Rbe1 {[%clk 0:14:39]}  Qd7 {[%clk 0:36:04]}
25. Rxe7 {[%clk 0:11:52]}  Qxe7 {[%clk 0:36:27]} 26. Re1 {[%clk 0:11:56]}  Qd7 {[%clk 0:36:12]} 27. d5 {[%clk 0:08:37]}  Re8 {[%clk 0:34:36]}
28. Bxg7 {[%clk 0:08:54]}  Kxg7 {[%clk 0:34:46]} 29. Kf2 {[%clk 0:07:05]}  Qd8 {[%clk 0:34:30]} 30. Qd4+ {[%clk 0:07:01]}  f6 {[%clk 0:34:53]}
31. Rxe8 {[%clk 0:05:36]}  Qxe8 {[%clk 0:35:18]} 32. Qb6 {[%clk 0:05:14]}  Qd7 {[%clk 0:33:33]} 33. b4 {[%clk 0:03:57]}  Qa4 {[%clk 0:30:09]}
34. Qxb7+ {[%clk 0:04:22]}  Kh6 {[%clk 0:30:33]} 35. Qe7 {[%clk 0:02:55]}  Qxa2+ {[%clk 0:30:34]} 36. Qe2 {[%clk 0:03:04]}  Qa4 {[%clk 0:30:25]}
37. Qe3+ {[%clk 0:02:55]}  Kg7 {[%clk 0:30:17]} 38. Qe7+ {[%clk 0:03:21]}  Kg8 {[%clk 0:30:29]} 39. Qe6+ {[%clk 0:03:24]}  Kg7 {[%clk 0:30:51]}
40. Qe7+ {[%clk 0:03:41]}  Kg8 {[%clk 0:31:10]} 41. Qe6+ {[%clk 0:12:58]}  Kg7 {[%clk 1:01:26]} 42. c5 {[%clk 0:07:12]}  Qa2+ {[%clk 0:59:58]}
43. Qe2 {[%clk 0:03:52]}  Qxd5 {[%clk 1:00:20]} 44. Qe7+ {[%clk 0:04:12]}  Kg8 {[%clk 0:59:06]} 45. Qe8+ {[%clk 0:04:39]}  Kg7 {[%clk 0:58:53]}
46. Qe7+ {[%clk 0:04:41]}  Kg8 {[%clk 0:58:23]} 47. Qe8+ {[%clk 0:05:07]}  Kg7 {[%clk 0:58:48]} 48. Qe7+ {[%clk 0:04:12]}  Kg8 {[%clk 0:59:10]}
49. Qe8+ {[%clk 0:01:58]}  Kg7 {[%clk 0:59:24]} 1/2-1/2

[Event "2026 European Womens Championship"]
[Site "Batumi, GE"]
[Date "2026.05.30"]
[Round "6"]
[White "Esadze, Tamari"]
[Black "Aghaverdiyeva, Maryam"]
[Result "0-1"]
[Board "121"]
[TimeControl "5400+30"]
[WhiteFideId "13611186"]
[BlackFideId "13452509"]
[WhiteElo "1974"]
[BlackElo "2103"]
[BlackTitle "WFM"]
[WhiteClock "0:02:23"]
[BlackClock "0:02:47"]
[Variant "Standard"]

1. e4 {[%clk 1:30:59]}  c5 {[%clk 1:30:08]} 2. Nf3 {[%clk 1:31:24]}  e6 {[%clk 1:30:11]} 3. d4 {[%clk 1:31:52]}  cxd4 {[%clk 1:30:26]}
4. Nxd4 {[%clk 1:32:19]}  Nc6 {[%clk 1:30:36]} 5. Nc3 {[%clk 1:32:25]}  Qc7 {[%clk 1:30:45]} 6. a3 {[%clk 1:32:30]}  a6 {[%clk 1:30:58]}
7. Be2 {[%clk 1:31:22]}  Nf6 {[%clk 1:30:52]} 8. Be3 {[%clk 1:30:36]}  b5 {[%clk 1:31:07]} 9. O-O {[%clk 1:28:13]}  Bb7 {[%clk 1:31:28]}
10. Nxc6 {[%clk 1:22:44]}  Bxc6 {[%clk 1:30:30]} 11. Qd4 {[%clk 1:18:19]}  Qb7 {[%clk 1:17:38]} 12. f3 {[%clk 1:15:33]}  Be7 {[%clk 1:16:55]}
13. Rad1 {[%clk 1:11:18]}  O-O {[%clk 1:11:06]} 14. Kh1 {[%clk 1:00:15]}  Rfc8 {[%clk 1:03:44]} 15. g4 {[%clk 0:51:45]}  d6 {[%clk 0:56:49]}
16. Qd2 {[%clk 0:47:57]}  a5 {[%clk 0:47:54]} 17. g5 {[%clk 0:39:09]}  Nd7 {[%clk 0:45:39]} 18. Nd5 {[%clk 0:38:14]}  Bf8 {[%clk 0:40:49]}
19. Nf4 {[%clk 0:32:58]}  Ne5 {[%clk 0:37:03]} 20. Bd3 {[%clk 0:30:22]}  b4 {[%clk 0:32:52]} 21. Qg2 {[%clk 0:22:31]}  b3 {[%clk 0:24:00]}
22. c4 {[%clk 0:17:59]}  Bd7 {[%clk 0:17:44]} 23. Qe2 {[%clk 0:15:26]}  Rc7 {[%clk 0:15:27]} 24. Rc1 {[%clk 0:13:29]}  Rac8 {[%clk 0:14:53]}
25. Bd2 {[%clk 0:08:17]}  a4 {[%clk 0:11:02]} 26. Ng2 {[%clk 0:02:04]}  Qa7 {[%clk 0:06:03]} 27. Ne3 {[%clk 0:02:21]}  Qd4 {[%clk 0:05:29]}
28. Rc3 {[%clk 0:02:19]}  Be7 {[%clk 0:04:36]} 29. Nf5 {[%clk 0:01:31]}  exf5 {[%clk 0:03:45]} 30. Be3 {[%clk 0:02:00]}  Qxc3 {[%clk 0:03:05]}
31. bxc3 {[%clk 0:02:28]}  Nxd3 {[%clk 0:02:50]} 32. Qxd3 {[%clk 0:02:55]}  fxe4 {[%clk 0:01:55]} 33. Qxe4 {[%clk 0:02:45]}  Bf8 {[%clk 0:00:57]}
34. c5 {[%clk 0:02:55]}  dxc5 {[%clk 0:00:50]} 35. Bf4 {[%clk 0:03:04]}  Bc6 {[%clk 0:00:50]} 36. Qf5 {[%clk 0:02:14]}  Rd7 {[%clk 0:00:54]}
37. Be5 {[%clk 0:01:57]}  Rcd8 {[%clk 0:00:48]} 38. c4 {[%clk 0:02:06]}  Rd2 {[%clk 0:00:35]} 39. h4 {[%clk 0:00:41]}  Bd7 {[%clk 0:00:31]}
40. Qf4 {[%clk 0:00:39]}  Bh3 {[%clk 0:00:35]} 41. Re1 {[%clk 0:25:12]}  b2 {[%clk 0:27:26]} 42. Qe4 {[%clk 0:21:42]}  g6 {[%clk 0:14:51]}
43. Bc3 {[%clk 0:18:27]}  Bf5 {[%clk 0:07:57]} 44. Qe5 {[%clk 0:18:29]}  R8d4 {[%clk 0:08:00]} 45. Bxd2 {[%clk 0:10:47]}  Rxd2 {[%clk 0:07:50]}
46. Qb8 {[%clk 0:10:09]}  Re2 {[%clk 0:04:53]} 47. Rd1 {[%clk 0:07:02]}  Rd2 {[%clk 0:04:24]} 48. Re1 {[%clk 0:07:10]}  Re2 {[%clk 0:04:48]}
49. Rd1 {[%clk 0:07:39]}  Bc2 {[%clk 0:05:06]} 50. Rg1 {[%clk 0:06:04]}  Bd3 {[%clk 0:03:36]} 51. Rd1 {[%clk 0:05:23]}  Rd2 {[%clk 0:02:52]}
52. Re1 {[%clk 0:05:16]}  Bf5 {[%clk 0:02:26]} 53. Rg1 {[%clk 0:04:45]}  Rc2 {[%clk 0:01:14]} 54. Qe5 {[%clk 0:03:47]}  Rf2 {[%clk 0:01:00]}
55. Qb8 {[%clk 0:03:52]}  Rxf3 {[%clk 0:00:33]} 56. Qxb2 {[%clk 0:01:47]}  Be4 {[%clk 0:00:59]} 57. Rg2 {[%clk 0:00:46]}  Rf1+ {[%clk 0:01:23]}
58. Kh2 {[%clk 0:01:15]}  Bd6+ {[%clk 0:01:48]} 59. Kh3 {[%clk 0:01:35]}  Bf5+ {[%clk 0:02:03]} 60. Rg4 {[%clk 0:02:00]}  Rh1+ {[%clk 0:02:27]}
61. Kg2 {[%clk 0:02:23]}  Rh2+ {[%clk 0:02:47]} 0-1

[Event "2026 European Womens Championship"]
[Site "Batumi, GE"]
[Date "2026.05.30"]
[Round "6"]
[White "Danielyan, Lilia"]
[Black "Subramanian, Anusha"]
[Result "1/2-1/2"]
[Board "122"]
[TimeControl "5400+30"]
[WhiteFideId "13319841"]
[BlackFideId "477710"]
[WhiteElo "1728"]
[BlackElo "2068"]
[BlackTitle "WFM"]
[WhiteClock "0:11:58"]
[BlackClock "0:24:29"]
[Variant "Standard"]

1. c4 {[%clk 1:30:52]}  e5 {[%clk 1:30:54]} 2. Nc3 {[%clk 1:31:12]}  Nc6 {[%clk 1:31:17]} 3. g3 {[%clk 1:31:21]}  f5 {[%clk 1:31:31]}
4. Bg2 {[%clk 1:31:39]}  Nf6 {[%clk 1:31:57]} 5. d3 {[%clk 1:31:54]}  Bb4 {[%clk 1:31:47]} 6. Bd2 {[%clk 1:32:02]}  d6 {[%clk 1:31:07]}
7. a3 {[%clk 1:30:31]}  Bxc3 {[%clk 1:31:04]} 8. Bxc3 {[%clk 1:30:50]}  O-O {[%clk 1:30:48]} 9. e3 {[%clk 1:29:55]}  f4 {[%clk 1:26:08]}
10. Nf3 {[%clk 1:13:45]}  Ne7 {[%clk 1:04:28]} 11. exf4 {[%clk 0:57:06]}  exf4 {[%clk 1:04:05]} 12. Qd2 {[%clk 0:56:35]}  d5 {[%clk 0:54:51]}
13. O-O-O {[%clk 0:42:40]}  c5 {[%clk 0:45:43]} 14. Qxf4 {[%clk 0:34:37]}  Ng6 {[%clk 0:14:58]} 15. Qg5 {[%clk 0:32:18]}  d4 {[%clk 0:15:16]}
16. Be1 {[%clk 0:30:02]}  Qb6 {[%clk 0:13:44]} 17. b4 {[%clk 0:26:24]}  Bg4 {[%clk 0:07:58]} 18. h3 {[%clk 0:25:14]}  Bxf3 {[%clk 0:07:11]}
19. Bxf3 {[%clk 0:25:31]}  cxb4 {[%clk 0:06:46]} 20. Bxb4 {[%clk 0:25:31]}  Rfc8 {[%clk 0:06:31]} 21. Qa5 {[%clk 0:23:21]}  Qxa5 {[%clk 0:05:19]}
22. Bxa5 {[%clk 0:23:49]}  Rab8 {[%clk 0:05:36]} 23. Bb4 {[%clk 0:23:02]}  b5 {[%clk 0:04:29]} 24. Kd2 {[%clk 0:13:10]}  bxc4 {[%clk 0:04:21]}
25. dxc4 {[%clk 0:13:29]}  Rxc4 {[%clk 0:03:29]} 26. Rc1 {[%clk 0:13:21]}  Rxc1 {[%clk 0:02:36]} 27. Rxc1 {[%clk 0:13:41]}  Ne5 {[%clk 0:02:40]}
28. Bg2 {[%clk 0:13:39]}  a5 {[%clk 0:02:31]} 29. f4 {[%clk 0:09:08]}  Nf3+ {[%clk 0:00:38]} 30. Bxf3 {[%clk 0:09:17]}  axb4 {[%clk 0:01:03]}
31. Rb1 {[%clk 0:08:43]}  b3 {[%clk 0:00:49]} 32. g4 {[%clk 0:07:18]}  Kf8 {[%clk 0:00:40]} 33. Kd3 {[%clk 0:04:54]}  b2 {[%clk 0:01:00]}
34. Kc2 {[%clk 0:01:40]}  d3+ {[%clk 0:00:33]} 35. Kc3 {[%clk 0:01:50]}  d2 {[%clk 0:00:37]} 36. Kc2 {[%clk 0:00:34]}  d1=Q+ {[%clk 0:00:34]}
37. Rxd1 {[%clk 0:00:32]}  Nd7 {[%clk 0:00:32]} 38. Rb1 {[%clk 0:00:47]}  Nc5 {[%clk 0:00:39]} 39. Rxb2 {[%clk 0:00:45]}  Rc8 {[%clk 0:00:34]}
40. Kd2 {[%clk 0:00:33]}  Rd8+ {[%clk 0:00:46]} 41. Ke2 {[%clk 0:29:09]}  Re8+ {[%clk 0:30:12]} 42. Kd2 {[%clk 0:24:56]}  Rd8+ {[%clk 0:30:30]}
43. Kc2 {[%clk 0:21:34]}  Rd3 {[%clk 0:24:58]} 44. Rb5 {[%clk 0:13:40]}  Rxf3 {[%clk 0:25:09]} 45. Rxc5 {[%clk 0:14:03]}  Rxa3 {[%clk 0:24:56]}
46. Rc3 {[%clk 0:14:14]}  Ra4 {[%clk 0:24:58]} 47. Rf3 {[%clk 0:13:39]}  Kf7 {[%clk 0:24:42]} 48. Kd3 {[%clk 0:12:46]}  Kf6 {[%clk 0:24:42]}
49. Ke3 {[%clk 0:12:46]}  Ra2 {[%clk 0:23:31]} 50. Ke4 {[%clk 0:11:20]}  Ra4+ {[%clk 0:23:45]} 51. Ke3 {[%clk 0:11:40]}  Ra2 {[%clk 0:24:07]}
52. Ke4 {[%clk 0:11:58]}  Ra4+ {[%clk 0:24:29]} 1/2-1/2

[Event "2026 European Womens Championship"]
[Site "Batumi, GE"]
[Date "2026.05.30"]
[Round "6"]
[White "Manukyan, Tamara"]
[Black "Avelino, Camila Biscaya"]
[Result "1/2-1/2"]
[Board "123"]
[TimeControl "5400+30"]
[WhiteFideId "13321307"]
[BlackFideId "1938975"]
[WhiteElo "1707"]
[BlackElo "1937"]
[BlackTitle "WFM"]
[WhiteClock "1:05:19"]
[BlackClock "0:17:34"]
[Variant "Standard"]

1. e4 {[%clk 1:30:59]}  e5 {[%clk 1:30:48]} 2. Nc3 {[%clk 1:31:24]}  Nc6 {[%clk 1:30:18]} 3. g3 {[%clk 1:31:49]}  g6 {[%clk 1:27:56]}
4. Bg2 {[%clk 1:32:14]}  Bg7 {[%clk 1:28:19]} 5. Nge2 {[%clk 1:31:57]}  Nge7 {[%clk 1:28:00]} 6. O-O {[%clk 1:32:19]}  O-O {[%clk 1:27:42]}
7. d3 {[%clk 1:32:39]}  d6 {[%clk 1:26:31]} 8. Be3 {[%clk 1:27:40]}  Nd4 {[%clk 1:12:10]} 9. Qd2 {[%clk 1:22:08]}  c6 {[%clk 0:54:34]}
10. Rac1 {[%clk 1:19:08]}  b5 {[%clk 0:42:29]} 11. f4 {[%clk 1:18:06]}  Rb8 {[%clk 0:29:32]} 12. h3 {[%clk 1:17:35]}  f5 {[%clk 0:17:01]}
13. Nd1 {[%clk 1:15:33]}  d5 {[%clk 0:11:28]} 14. fxe5 {[%clk 1:11:15]}  Nxe2+ {[%clk 0:10:57]} 15. Qxe2 {[%clk 1:11:41]}  dxe4 {[%clk 0:09:41]}
16. dxe4 {[%clk 1:10:42]}  Bxe5 {[%clk 0:08:14]} 17. exf5 {[%clk 1:08:41]}  Bxg3 {[%clk 0:02:08]} 18. Bxa7 {[%clk 1:04:06]}  Ra8 {[%clk 0:01:45]}
19. Bc5 {[%clk 1:00:31]}  Bd6 {[%clk 0:02:08]} 20. Bxd6 {[%clk 1:00:01]}  Qxd6 {[%clk 0:02:31]} 21. fxg6 {[%clk 0:59:45]}  Rxf1+ {[%clk 0:02:49]}
22. Qxf1 {[%clk 0:59:25]}  Qxg6 {[%clk 0:02:35]} 23. Qd3 {[%clk 0:58:21]}  Qxd3 {[%clk 0:01:39]} 24. cxd3 {[%clk 0:58:47]}  Rxa2 {[%clk 0:01:26]}
25. Kh2 {[%clk 0:53:29]}  Bd7 {[%clk 1:30:30]} 26. Kg3 {[%clk 0:52:57]}  Kg7 {[%clk 0:01:03]} 27. Be4 {[%clk 0:52:37]}  h6 {[%clk 0:01:03]}
28. Rc2 {[%clk 0:52:46]}  Nf5+ {[%clk 0:01:12]} 29. Kf4 {[%clk 0:51:26]}  Nd4 {[%clk 0:00:37]} 30. Rg2+ {[%clk 0:51:07]}  Kf7 {[%clk 0:01:00]}
31. Ke5 {[%clk 0:50:06]}  Nb3 {[%clk 0:00:58]} 32. Kd6 {[%clk 0:48:21]}  Bxh3 {[%clk 0:01:05]} 33. Rh2 {[%clk 0:46:15]}  Bg4 {[%clk 0:00:37]}
34. Ne3 {[%clk 0:45:50]}  h5 {[%clk 0:00:45]} 35. Kxc6 {[%clk 0:45:19]}  Nd4+ {[%clk 0:00:36]} 36. Kc5 {[%clk 0:45:08]}  Ne6+ {[%clk 0:00:36]}
37. Kxb5 {[%clk 0:45:25]}  Ke7 {[%clk 0:00:47]} 38. Nxg4 {[%clk 0:40:43]}  hxg4 {[%clk 0:01:12]} 39. Bd5 {[%clk 0:39:14]}  Nc7+ {[%clk 0:01:04]}
40. Kc6 {[%clk 0:39:22]}  Nxd5 {[%clk 0:01:25]} 41. Kxd5 {[%clk 0:39:48]}  Ra5+ {[%clk 0:29:54]} 42. Ke4 {[%clk 1:10:04]}  Rb5 {[%clk 0:28:37]}
43. d4 {[%clk 1:09:14]}  g3 {[%clk 0:27:16]} 44. Rg2 {[%clk 1:09:40]}  Rb3 {[%clk 0:27:35]} 45. Kd5 {[%clk 1:06:08]}  Kd7 {[%clk 0:24:45]}
46. Kc4 {[%clk 1:06:26]}  Rb8 {[%clk 0:24:32]} 47. b4 {[%clk 1:06:27]}  Rc8+ {[%clk 0:24:54]} 48. Kd5 {[%clk 1:06:32]}  Rb8 {[%clk 0:22:15]}
49. Kc4 {[%clk 1:06:18]}  Rc8+ {[%clk 0:22:37]} 50. Kb3 {[%clk 1:06:26]}  Rg8 {[%clk 0:20:35]} 51. Kc3 {[%clk 1:05:23]}  Rc8+ {[%clk 0:17:21]}
52. Kd3 {[%clk 1:05:47]}  Rb8 {[%clk 0:16:21]} 53. Rxg3 {[%clk 1:06:02]}  Rxb4 {[%clk 0:16:44]} 54. Ke4 {[%clk 1:06:28]}  Rb5 {[%clk 0:16:36]}
55. d5 {[%clk 1:06:35]}  Rb1 {[%clk 0:16:35]} 56. Rg7+ {[%clk 1:07:00]}  Kd6 {[%clk 0:16:52]} 57. Rg6+ {[%clk 1:07:25]}  Kd7 {[%clk 0:17:15]}
58. Re6 {[%clk 1:04:25]}  Re1+ {[%clk 0:17:22]} 59. Kf5 {[%clk 1:04:53]}  Rxe6 {[%clk 0:17:10]} 60. dxe6+ {[%clk 1:05:19]}  Ke7 {[%clk 0:17:34]}
61. Ke4 {[%clk 1:05:10]} 1/2-1/2